fUST/lending_fUST_20250723
["ID","MTS","AMOUNT","RATE_DAILY","PERIOD"]
[374242275,1753253446700,-460.0,0.00021369,2]
[374242277,1753253446709,-460.0,0.00021369,2]
[374242279,1753253446719,-460.0,0.00021369,2]
[374242281,1753253446728,-1265.15,0.00021369,2]
[374242283,1753253446737,-342.46,0.00021369,2]
[374242285,1753253446747,-460.0,0.00021369,2]
[374242287,1753253446756,-966.75,0.00021369,2]
[374242289,1753253446766,-460.0,0.00021369,2]
[374242291,1753253446775,-460.0,0.00021369,2]
[374242293,1753253446784,-404.27,0.00021369,2]
[374242295,1753253446794,-520.7,0.00021369,2]
[374242297,1753253446803,-460.0,0.00021369,2]
[374242298,1753253446814,-460.0,0.00021369,2]
[374242299,1753253446824,-460.0,0.00021369,2]
[374242300,1753253446834,-990.7,0.00021369,2]
[374242301,1753253446843,-460.0,0.00021369,2]
[374242302,1753253446852,-3048.77,0.00021369,2]
[374242303,1753253446862,-460.0,0.00021369,2]
[374242304,1753253446872,-1411.17,0.00021369,2]
[374242305,1753253446881,-3665.69,0.00021415,2]
[374242308,1753253446891,-1097.66,0.00021415,2]
[374242310,1753253446901,-1842.17,0.00021415,2]
[374242311,1753253446911,-1807.75,0.00021417,2]
[374242312,1753253446920,-2471.25,0.00021417,2]
[374242315,1753253446930,-1372.75,0.00021417,2]
[374242317,1753253446939,-460.0,0.00021417,2]
[374242319,1753253446948,-2472.62,0.00021417,2]
[374242321,1753253446958,-460.0,0.00021417,2]
[374242323,1753253446967,-12622.36869388,0.0002145,2]
[374242325,1753253446978,-215.0738,0.00021503,2]
[374242327,1753253446988,-160.0,0.0002159,2]
[374242329,1753253446998,-160.0,0.0002159,2]
[374242331,1753253447008,-160.0,0.0002159,2]
[374242333,1753253447018,-151.0,0.000216,3]
[374242335,1753253447027,-672.12,0.00021643,2]
[374242337,1753253447036,-676.26,0.00021643,2]
[374242339,1753253447050,-460.0,0.00021643,2]
[374242342,1753253447064,-460.0,0.00021643,2]
[374242344,1753253447078,-460.0,0.00021643,2]
[374242347,1753253447091,-1265.15,0.00021643,2]
[374242349,1753253447103,-460.0,0.00021643,2]
[374242351,1753253447116,-966.75,0.00021643,2]
[374242353,1753253447129,-460.0,0.00021643,2]
[374242356,1753253447142,-460.0,0.00021643,2]
[374242358,1753253447158,-520.7,0.00021643,2]
[374242361,1753253447170,-460.0,0.00021643,2]
[374242363,1753253447182,-460.0,0.00021643,2]
[374242365,1753253447194,-460.0,0.00021643,2]
[374242368,1753253447208,-990.7,0.00021643,2]
[374242370,1753253447220,-460.0,0.00021643,2]
[374242372,1753253447232,-3048.77,0.00021643,2]
[374242375,1753253447245,-406.24,0.00021643,2]
[374242377,1753253447256,-1411.17,0.00021643,2]
[374242379,1753253447270,-3665.69,0.00021689,2]
[374242382,1753253447283,-1097.66,0.00021689,2]
[374242384,1753253447294,-1842.17,0.00021689,2]
[374242386,1753253447307,-1807.75,0.00021691,2]
[374242388,1753253447318,-2471.25,0.00021691,2]
[374242391,1753253447330,-1372.75,0.00021691,2]
[374242393,1753253447341,-460.0,0.00021691,2]
[374242395,1753253447354,-460.0,0.00021691,2]
[374242397,1753253447369,-360.0,0.00021828,2]
[374242399,1753253447382,-1808.83535924,0.00021876,2]
[374242402,1753253447395,-500.0,0.0002189,2]
[374242404,1753253447409,-507.61580737,0.0002189,2]
[374242406,1753253447422,-500.0,0.0002189,2]
[374242409,1753253447436,-503.73116406,0.0002189,2]
[374242411,1753253447447,-500.0,0.0002189,2]
[374242413,1753253447458,-500.0,0.0002189,2]
[374242415,1753253447468,-500.0,0.0002189,2]
[374242417,1753253447479,-500.98894013,0.0002189,2]
[374242420,1753253447495,-500.0,0.0002189,2]
[374242422,1753253447510,-672.12,0.00021917,2]
[374242425,1753253447522,-676.26,0.00021917,2]
[374242427,1753253447532,-460.0,0.00021917,2]
[374242429,1753253447543,-460.0,0.00021917,2]
[374242431,1753253447554,-460.0,0.00021917,2]
[374242433,1753253447567,-1265.15,0.00021917,2]
[374242435,1753253447578,-460.0,0.00021917,2]
[374242437,1753253447588,-966.75,0.00021917,2]
[374242439,1753253447599,-460.0,0.00021917,2]
[374242442,1753253447610,-460.0,0.00021917,2]
[374242444,1753253447621,-520.7,0.00021917,2]
[374242446,1753253447632,-166.65456655,0.00021917,2]
[374242448,1753253447643,-460.0,0.00021917,2]
[374242450,1753253447655,-460.0,0.00021917,2]
[374242452,1753253447667,-990.7,0.00021917,2]
[374242455,1753253447678,-460.0,0.00021917,2]
[374242457,1753253447689,-3048.77,0.00021917,2]
[374242459,1753253447701,-1411.17,0.00021917,2]
[374242461,1753253447712,-153.0,0.00021918,2]
[374242463,1753253447723,-153.0,0.00021918,2]
[374242465,1753253447734,-153.0,0.00021918,2]
[374242467,1753253447745,-153.0,0.00021918,2]
[374242470,1753253447756,-153.0,0.00021918,2]
[374242472,1753253447767,-153.0,0.00021918,2]
[374242474,1753253447778,-153.0,0.00021918,2]
[374242476,1753253447789,-153.0,0.00021918,2]
[374242478,1753253447800,-153.0,0.00021918,2]
[374242480,1753253447811,-153.0,0.00021918,2]
[374242483,1753253447823,-153.0,0.00021918,2]
[374242485,1753253447834,-153.0,0.00021918,2]
[374242487,1753253447846,-153.0,0.00021918,2]
[374242489,1753253447858,-153.0,0.00021918,2]
[374242492,1753253447869,-153.0,0.00021918,2]
[374242494,1753253447881,-153.0,0.00021918,2]
[374242496,1753253447892,-153.0,0.00021918,2]
[374242498,1753253447903,-153.0,0.00021918,2]
[374242500,1753253447915,-153.0,0.00021918,2]
[374242502,1753253447926,-153.0,0.00021918,2]
[374242505,1753253447938,-153.0,0.00021918,2]
[374242507,1753253447950,-153.0,0.00021918,2]
[374242509,1753253447962,-153.0,0.00021918,2]
[374242511,1753253447973,-153.0,0.00021918,2]
[374242513,1753253447983,-153.0,0.00021918,2]
[374242515,1753253447995,-153.0,0.00021918,2]
[374242518,1753253448006,-153.0,0.00021918,2]
[374242520,1753253448017,-153.0,0.00021918,2]
[374242522,1753253448030,-153.0,0.00021918,2]
[374242524,1753253448041,-153.0,0.00021918,2]
[374242526,1753253448053,-153.0,0.00021918,2]
[374242529,1753253448065,-153.0,0.00021918,2]
[374242531,1753253448077,-153.0,0.00021918,2]
[374242533,1753253448088,-153.0,0.00021918,2]
[374242535,1753253448099,-153.0,0.00021918,2]
[374242537,1753253448112,-153.0,0.00021918,2]
[374242540,1753253448123,-153.0,0.00021918,2]
[374242542,1753253448135,-153.0,0.00021918,2]
[374242544,1753253448146,-153.0,0.00021918,2]
[374242546,1753253448158,-153.0,0.00021918,2]
[374242548,1753253448175,-153.0,0.00021918,2]
[374242550,1753253448192,-153.0,0.00021918,2]
[374242563,1753253448301,-153.0,0.00021918,2]
[374242566,1753253448342,-153.0,0.00021918,2]
[374242568,1753253448352,-153.0,0.00021918,2]
[374242570,1753253448366,-153.0,0.00021918,2]
[374242572,1753253448375,-153.0,0.00021918,2]
[374242574,1753253448385,-153.0,0.00021918,2]
[374242576,1753253448394,-153.0,0.00021918,2]
[374242578,1753253448404,-153.0,0.00021918,2]
[374242580,1753253448414,-153.0,0.00021918,2]
[374242582,1753253448423,-153.0,0.00021918,2]
[374242584,1753253448432,-153.0,0.00021918,2]
[374242586,1753253448443,-153.0,0.00021918,2]
[374242588,1753253448452,-153.0,0.00021918,2]
[374242590,1753253448461,-153.0,0.00021918,2]
[374242592,1753253448471,-153.0,0.00021918,2]
[374242594,1753253448479,-153.0,0.00021918,2]
[374242596,1753253448490,-153.0,0.00021918,2]
[374242598,1753253448499,-153.0,0.00021918,2]
[374242600,1753253448508,-153.0,0.00021918,2]
[374242602,1753253448518,-153.0,0.00021918,2]
[374242604,1753253448528,-153.0,0.00021918,2]
[374242606,1753253448537,-153.0,0.00021918,2]
[374242608,1753253448546,-153.0,0.00021918,2]
[374242610,1753253448556,-153.0,0.00021918,2]
[374242612,1753253448564,-153.0,0.00021918,2]
[374242614,1753253448573,-153.0,0.00021918,2]
[374242616,1753253448583,-153.0,0.00021918,2]
[374242618,1753253448592,-153.0,0.00021918,2]
[374242620,1753253448601,-153.0,0.00021918,2]
[374242622,1753253448611,-153.0,0.00021918,2]
[374242624,1753253448622,-153.0,0.00021918,2]
[374242626,1753253448631,-153.0,0.00021918,2]
[374242627,1753253448640,-153.0,0.00021918,2]
[374242628,1753253448649,-153.0,0.00021918,2]
[374242629,1753253448659,-153.0,0.00021918,2]
[374242630,1753253448668,-153.0,0.00021918,2]
[374242631,1753253448678,-153.0,0.00021918,2]
[374242632,1753253448687,-153.0,0.00021918,2]
[374242633,1753253448696,-150.08442765,0.00021918,2]
[374242634,1753253448706,-200.36388747,0.00021918,2]
[374242635,1753253448715,-3665.69,0.00021963,2]
[374242636,1753253448725,-1097.66,0.00021963,2]
[374242637,1753253448734,-1842.17,0.00021963,2]
[374242638,1753253448745,-2471.25,0.00021965,2]
[374242639,1753253448754,-1372.75,0.00021965,2]
[374242640,1753253448764,-460.0,0.00021965,2]
[374242641,1753253448773,-460.0,0.00021965,2]
[374242642,1753253448783,-375.54,0.00022,7]
[374242643,1753253448792,-713.99,0.00022,7]
[374242644,1753253448802,-12298.54,0.00022,2]
[374242645,1753253448812,-166.0,0.00022,2]
[374242646,1753253448822,-9028.08,0.00022,7]
[374242648,1753253448831,-151.0,0.00022,7]
[374242650,1753253448841,-151.0,0.00022,7]
[374242652,1753253448850,-151.0,0.00022,2]
[374242654,1753253448860,-500.0,0.00022008,2]
[374242656,1753253448870,-151.0,0.000221,9]
[374242658,1753253448879,-672.12,0.00022191,2]
[374242660,1753253448889,-676.26,0.00022191,2]
[374242662,1753253448898,-460.0,0.00022191,2]
[374242664,1753253448907,-460.0,0.00022191,2]
[374242666,1753253448916,-460.0,0.00022191,2]
[374242667,1753253448926,-1265.15,0.00022191,2]
[374242669,1753253448935,-176.93,0.00022191,2]
[374242671,1753253448945,-966.75,0.00022191,2]
[374242673,1753253448953,-460.0,0.00022191,2]
[374242675,1753253448963,-460.0,0.00022191,2]
[374242677,1753253448972,-520.7,0.00022191,2]
[374242679,1753253448982,-460.0,0.00022191,2]
[374242681,1753253448991,-548.46,0.00022191,2]
[374242684,1753253449001,-990.7,0.00022191,2]
[374242686,1753253449010,-460.0,0.00022191,2]
[374242687,1753253449019,-151.76315,0.00022191,7]
[374242689,1753253449029,-151.0,0.00022191,7]
[374242691,1753253449038,-3048.77,0.00022191,2]
[374242693,1753253449048,-151.0,0.00022191,7]
[374242694,1753253449058,-1411.17,0.00022191,2]
[374242695,1753253449068,-3665.69,0.00022237,2]
[374242696,1753253449077,-1097.66,0.00022237,2]
[374242697,1753253449087,-1842.17,0.00022237,2]
[374242698,1753253449096,-2471.25,0.00022239,2]
[374242699,1753253449106,-1372.75,0.00022239,2]
[374242700,1753253449116,-400.0,0.00022358,2]
[374242701,1753253449125,-460.0,0.00022376,2]
[374242702,1753253449134,-932.11861321,0.00022438,2]
[374242703,1753253449143,-1000.0,0.00022438,2]
[374242704,1753253449152,-500.0,0.00022438,2]
[374242705,1753253449162,-501.32912876,0.00022438,2]
[374242706,1753253449172,-672.12,0.00022465,2]
[374242707,1753253449182,-676.26,0.00022465,2]
[374242708,1753253449191,-460.0,0.00022465,2]
[374242709,1753253449200,-460.0,0.00022465,2]
[374242710,1753253449210,-460.0,0.00022465,2]
[374242711,1753253449219,-1265.15,0.00022465,2]
[374242712,1753253449230,-966.75,0.00022465,2]
[374242713,1753253449239,-281.31,0.00022465,2]
[374242714,1753253449248,-460.0,0.00022465,2]
[374242715,1753253449258,-520.7,0.00022465,2]
[374242716,1753253449267,-460.0,0.00022465,2]
[374242717,1753253449277,-990.7,0.00022465,2]
[374242718,1753253449286,-460.0,0.00022465,2]
[374242719,1753253449295,-3048.77,0.00022465,2]
[374242720,1753253449305,-1498.23,0.00022465,2]
[374242722,1753253449315,-1411.17,0.00022465,2]
[374242724,1753253449324,-513.33,0.00022471,7]
[374242726,1753253449332,-3665.69,0.00022511,2]
[374242728,1753253449341,-1097.66,0.00022511,2]
[374242730,1753253449350,-1842.17,0.00022511,2]
[374242732,1753253449362,-2471.25,0.00022513,2]
[374242734,1753253449372,-1372.75,0.00022513,2]
[374242736,1753253449381,-500.89543393,0.00022524,2]
[374242738,1753253449391,-500.0,0.00022524,2]
[374242740,1753253449402,-501.36703436,0.00022524,2]
[374242742,1753253449411,-187.95442895,0.00022524,2]
[374242744,1753253449421,-500.0,0.00022524,2]
[374242746,1753253449431,-500.0,0.00022524,2]
[374242748,1753253449440,-501.72112936,0.00022524,2]
[374242750,1753253449450,-500.0,0.00022524,2]
[374242752,1753253449460,-500.0,0.00022524,2]
[374242754,1753253449470,-513.33,0.00022571,7]
[374242756,1753253449480,-151.0,0.000226,7]
[374242758,1753253449489,-168.0,0.00022655,2]
[374242760,1753253449499,-600.0,0.00022666,2]
[374242762,1753253449509,-513.33,0.00022671,2]
[374242764,1753253449518,-168.0,0.00022697,2]
[374242765,1753253449528,-672.12,0.00022739,2]
[374242767,1753253449537,-676.26,0.00022739,2]
[374242769,1753253449547,-287.1323795,0.00022739,2]
[374242771,1753253449556,-460.0,0.00022739,2]
[374242773,1753253449565,-460.0,0.00022739,2]
[374242776,1753253449575,-1265.15,0.00022739,2]
[374242777,1753253449584,-966.75,0.00022739,2]
[374242779,1753253449593,-460.0,0.00022739,2]
[374242781,1753253449603,-520.7,0.00022739,2]
[374242783,1753253449612,-460.0,0.00022739,2]
[374242785,1753253449621,-990.7,0.00022739,2]
[374242787,1753253449631,-460.0,0.00022739,2]
[374242789,1753253449641,-3048.77,0.00022739,2]
[374242791,1753253449651,-1411.17,0.00022739,2]
[374242793,1753253449660,-168.0,0.00022749,2]
[374242795,1753253449670,-513.33,0.00022771,6]
[374242797,1753253449679,-3665.69,0.00022785,2]
[374242799,1753253449688,-1097.66,0.00022785,2]
[374242801,1753253449698,-1842.17,0.00022785,2]
[374242803,1753253449707,-2471.25,0.00022787,2]
[374242806,1753253449717,-1372.75,0.00022787,2]
[374242808,1753253449727,-513.33,0.00022871,4]
[374242810,1753253449736,-223.0315306,0.00022872,2]
[374242812,1753253449746,-560.0,0.00022924,2]
[374242814,1753253449755,-513.33,0.00022971,5]
[374242816,1753253449765,-4329.0,0.00022975,2]
[374242817,1753253449775,-1500.0,0.00022986,2]
[374242819,1753253449784,-460.0,0.0002301,2]
[374242821,1753253449793,-460.0,0.0002301,2]
[374242823,1753253449803,-460.0,0.0002301,2]
[374242825,1753253449813,-460.0,0.0002301,2]
[374242827,1753253449822,-460.0,0.0002301,2]
[374242829,1753253449832,-460.0,0.0002301,2]
[374242831,1753253449841,-1002.96416905,0.0002301,2]
[374242833,1753253449851,-462.84889625,0.0002301,2]
[374242835,1753253449861,-460.0,0.0002301,2]
[374242837,1753253449870,-460.0,0.0002301,2]
[374242839,1753253449880,-460.0,0.0002301,2]
[374242841,1753253449889,-460.0,0.0002301,2]
[374242843,1753253449899,-460.0,0.0002301,2]
[374242845,1753253449908,-462.51329879,0.0002301,2]
[374242847,1753253449918,-460.0,0.0002301,2]
[374242849,1753253449927,-460.0,0.0002301,2]
[374242851,1753253449937,-460.0,0.0002301,2]
[374242853,1753253449946,-460.0,0.0002301,2]
[374242855,1753253449955,-460.0,0.0002301,2]
[374242857,1753253449964,-500.0,0.0002301,2]
[374242859,1753253449974,-460.0,0.0002301,2]
[374242861,1753253449984,-460.0,0.0002301,2]
[374242863,1753253449993,-460.0,0.0002301,2]
[374242865,1753253450002,-460.0,0.0002301,2]
[374242867,1753253450012,-460.0,0.0002301,2]
[374242869,1753253450021,-460.0,0.0002301,2]
[374242871,1753253450031,-463.15875762,0.0002301,2]
[374242873,1753253450042,-460.0,0.0002301,2]
[374242875,1753253450052,-460.0,0.0002301,2]
[374242877,1753253450061,-460.0,0.0002301,2]
[374242879,1753253450071,-460.0,0.0002301,2]
[374242881,1753253450080,-461.42931515,0.0002301,2]
[374242883,1753253450090,-460.0,0.0002301,2]
[374242885,1753253450099,-460.0,0.0002301,2]
[374242887,1753253450109,-460.0,0.0002301,2]
[374242889,1753253450118,-460.0,0.0002301,2]
[374242891,1753253450128,-460.0,0.0002301,2]
[374242893,1753253450137,-460.0,0.0002301,2]
[374242895,1753253450147,-460.0,0.0002301,2]
[374242897,1753253450156,-460.0,0.0002301,2]
[374242899,1753253450166,-460.0,0.0002301,2]
[374242901,1753253450175,-463.0774752,0.0002301,2]
[374242903,1753253450184,-460.0,0.0002301,2]
[374242905,1753253450193,-460.0,0.0002301,2]
[374242907,1753253450202,-460.0,0.0002301,2]
[374242908,1753253450211,-966.04,0.0002301,2]
[374242910,1753253450221,-460.0,0.0002301,2]
[374242912,1753253450230,-672.12,0.00023013,2]
[374242914,1753253450239,-676.26,0.00023013,2]
[374242917,1753253450249,-460.0,0.00023013,2]
[374242918,1753253450258,-460.0,0.00023013,2]
[374242920,1753253450268,-1265.15,0.00023013,2]
[374242922,1753253450278,-966.75,0.00023013,2]
[374242925,1753253450289,-460.0,0.00023013,2]
[374242926,1753253450299,-520.7,0.00023013,2]
[374242928,1753253450314,-460.0,0.00023013,2]
[374242930,1753253450324,-990.7,0.00023013,2]
[374242932,1753253450334,-460.0,0.00023013,2]
[374242934,1753253450344,-3048.77,0.00023013,2]
[374242936,1753253450354,-1411.17,0.00023013,2]
[374242938,1753253450368,-500.0,0.00023058,2]
[374242940,1753253450378,-3665.69,0.00023059,2]
[374242942,1753253450387,-1097.66,0.00023059,2]
[374242944,1753253450398,-1842.17,0.00023059,2]
[374242946,1753253450408,-500.0,0.0002306,2]
[374242948,1753253450417,-2471.25,0.00023061,2]
[374242950,1753253450429,-1372.75,0.00023061,2]
[374242952,1753253450441,-151.0,0.00023069,7]
[374242954,1753253450450,-152.467607,0.00023069,7]
[374242957,1753253450460,-151.0,0.00023069,7]
[374242958,1753253450469,-151.0,0.00023069,7]
[374242960,1753253450479,-184.724742,0.00023069,7]
[374242962,1753253450488,-151.0,0.00023069,7]
[374242964,1753253450498,-151.0,0.00023069,7]
[374242966,1753253450507,-151.0,0.00023069,7]
[374242969,1753253450516,-151.0,0.00023069,7]
[374242971,1753253450527,-151.0,0.00023069,7]
[374242973,1753253450536,-151.0,0.00023069,7]
[374242974,1753253450546,-151.0,0.00023069,7]
[374242977,1753253450555,-151.0,0.00023069,7]
[374242979,1753253450565,-513.33,0.00023071,7]
[374242981,1753253450575,-501.27535184,0.00023071,2]
[374242983,1753253450585,-501.10055354,0.00023071,2]
[374242985,1753253450594,-502.49980511,0.00023071,2]
[374242987,1753253450604,-1000.0,0.00023071,2]
[374242988,1753253450613,-1000.0,0.00023071,2]
[374242990,1753253450623,-500.0,0.00023073,2]
[374242992,1753253450632,-500.0,0.00023073,2]
[374242994,1753253450641,-500.0,0.00023099,2]
[374242996,1753253450651,-151.0,0.000231,8]
[374243007,1753253450746,-500.0,0.00023108,2]
[374243009,1753253450756,-1808.83535924,0.00023138,2]
[374243011,1753253450766,-513.33,0.00023171,3]
[374243013,1753253450776,-1000.0,0.00023179,2]
[374243015,1753253450785,-1677.0,0.00023212,2]
[374243017,1753253450795,-648.0,0.00023281,2]
[374243019,1753253450804,-2157.0,0.00023281,2]
[374243021,1753253450813,-460.0,0.00023284,2]
[374243023,1753253450823,-183.56291898,0.00023284,2]
[374243025,1753253450832,-460.0,0.00023284,2]
[374243027,1753253450841,-464.18986131,0.00023284,2]
[374243029,1753253450851,-460.0,0.00023284,2]
[374243031,1753253450860,-549.5112776,0.00023284,2]
[374243033,1753253450870,-460.0,0.00023284,2]
[374243035,1753253450879,-460.0,0.00023284,2]
[374243037,1753253450889,-460.0,0.00023284,2]
[374243039,1753253450898,-460.0,0.00023284,2]
[374243041,1753253450908,-519.59743155,0.00023284,2]
[374243043,1753253450920,-460.0,0.00023284,2]
[374243044,1753253450930,-500.0,0.00023284,2]
[374243046,1753253450939,-460.0,0.00023284,2]
[374243048,1753253450949,-458.30398322,0.00023284,2]
[374243050,1753253450958,-461.45309483,0.00023284,2]
[374243052,1753253450967,-460.0,0.00023284,2]
[374243054,1753253450977,-460.0,0.00023284,2]
[374243056,1753253450986,-460.0,0.00023284,2]
[374243058,1753253450995,-460.0,0.00023284,2]
[374243060,1753253451004,-460.80803837,0.00023284,2]
[374243062,1753253451013,-460.0,0.00023284,2]
[374243064,1753253451023,-460.0,0.00023284,2]
[374243066,1753253451032,-460.0,0.00023284,2]
[374243068,1753253451042,-460.0,0.00023284,2]
[374243070,1753253451051,-460.0,0.00023284,2]
[374243072,1753253451061,-460.0,0.00023284,2]
[374243074,1753253451070,-460.0,0.00023284,2]
[374243076,1753253451079,-462.2572154,0.00023284,2]
[374243078,1753253451089,-460.0,0.00023284,2]
[374243080,1753253451098,-460.0,0.00023284,2]
[374243082,1753253451108,-460.0,0.00023284,2]
[374243084,1753253451117,-966.04,0.00023284,2]
[374243086,1753253451127,-460.0,0.00023284,2]
[374243088,1753253451136,-168.0,0.00023285,2]
[374243090,1753253451146,-672.12,0.00023287,2]
[374243092,1753253451156,-676.26,0.00023287,2]
[374243094,1753253451165,-460.0,0.00023287,2]
[374243096,1753253451175,-460.0,0.00023287,2]
[374243098,1753253451184,-1265.15,0.00023287,2]
[374243100,1753253451193,-966.75,0.00023287,2]
[374243102,1753253451203,-416.33,0.00023287,2]
[374243104,1753253451212,-520.7,0.00023287,2]
[374243106,1753253451221,-573.82,0.00023287,2]
[374243108,1753253451231,-990.7,0.00023287,2]
[374243110,1753253451241,-460.0,0.00023287,2]
[374243112,1753253451250,-3048.77,0.00023287,2]
[374243114,1753253451259,-1411.17,0.00023287,2]
[374243116,1753253451268,-12298.54,0.000233,2]
[374243118,1753253451277,-642.0,0.000233,2]
[374243120,1753253451287,-500.0,0.00023332,2]
[374243122,1753253451296,-3665.69,0.00023333,2]
[374243124,1753253451306,-1097.66,0.00023333,2]
[374243126,1753253451316,-1842.17,0.00023333,2]
[374243128,1753253451325,-520.17641977,0.00023334,2]
[374243129,1753253451334,-4329.0,0.00023335,2]
[374243131,1753253451343,-2471.25,0.00023335,2]
[374243133,1753253451352,-1372.75,0.00023335,2]
[374243135,1753253451365,-151.0,0.00023335,7]
[374243137,1753253451375,-151.0,0.00023335,7]
[374243139,1753253451384,-168.0,0.00023338,2]
[374243141,1753253451394,-1677.0,0.0002334,2]
[374243143,1753253451404,-155.14035221,0.00023394,3]
[374243145,1753253451413,-168.0,0.00023396,2]
[374243147,1753253451423,-9028.08,0.000234,7]
[374243149,1753253451432,-151.0,0.000234,7]
[374243151,1753253451442,-151.0,0.000234,7]
[374243153,1753253451451,-165.068925,0.00023405,8]
[374243155,1753253451460,-152.61889,0.00023417,7]
[374243157,1753253451470,-151.0,0.00023417,7]
[374243159,1753253451479,-151.0,0.00023417,7]
[374243161,1753253451489,-167.197786,0.00023417,7]
[374243163,1753253451498,-151.0,0.00023417,7]
[374243165,1753253451508,-151.0,0.00023417,7]
[374243167,1753253451518,-151.0,0.00023417,7]
[374243169,1753253451527,-151.0,0.00023417,7]
[374243171,1753253451536,-168.0,0.00023421,2]
[374243173,1753253451545,-168.0,0.00023431,2]
[374243175,1753253451554,-168.0,0.0002347,2]
[374243177,1753253451564,-660.0,0.00023472,2]
[374243179,1753253451573,-155.554218,0.00023474,2]
[374243181,1753253451582,-375.54,0.000235,7]
[374243183,1753253451592,-151.0,0.000235,9]
[374243185,1753253451602,-348.42586761,0.00023534,2]
[374243187,1753253451610,-461.91934493,0.00023558,2]
[374243189,1753253451619,-460.0,0.00023558,2]
[374243191,1753253451629,-460.0,0.00023558,2]
[374243193,1753253451638,-460.0,0.00023558,2]
[374243195,1753253451648,-465.77190469,0.00023558,2]
[374243197,1753253451657,-460.0,0.00023558,2]
[374243199,1753253451667,-462.58453181,0.00023558,2]
[374243201,1753253451676,-460.0,0.00023558,2]
[374243202,1753253451685,-571.52314233,0.00023558,2]
[374243203,1753253451694,-460.0,0.00023558,2]
[374243204,1753253451703,-330.86410493,0.00023558,2]
[374243205,1753253451713,-460.0,0.00023558,2]
[374243206,1753253451722,-460.0,0.00023558,2]
[374243208,1753253451732,-151.0,0.00023558,7]
[374243210,1753253451741,-151.0,0.00023558,7]
[374243212,1753253451750,-151.0,0.00023558,7]
[374243214,1753253451760,-966.04,0.00023558,2]
[374243216,1753253451769,-460.0,0.00023558,2]
[374243218,1753253451778,-672.12,0.00023561,2]
[374243220,1753253451787,-676.26,0.00023561,2]
[374243222,1753253451797,-277.99812951,0.00023561,2]
[374243224,1753253451806,-460.0,0.00023561,2]
[374243226,1753253451815,-1265.15,0.00023561,2]
[374243228,1753253451825,-966.75,0.00023561,2]
[374243230,1753253451834,-520.7,0.00023561,2]
[374243232,1753253451844,-990.7,0.00023561,2]
[374243234,1753253451854,-460.0,0.00023561,2]
[374243236,1753253451864,-3048.77,0.00023561,2]
[374243238,1753253451874,-1411.17,0.00023561,2]
[374243240,1753253451883,-713.99,0.000236,7]
[374243242,1753253451893,-3665.69,0.00023607,2]
[374243244,1753253451904,-1097.66,0.00023607,2]
[374243246,1753253451913,-1842.17,0.00023607,2]
[374243248,1753253451923,-2471.25,0.00023609,2]
[374243250,1753253451932,-1372.75,0.00023609,2]